Cogmind - Beta 13 @@@ ROGUE MODE // 2024.05.16 @ 03:15:11 Player: BionicBot Result: Destroyed by Y-72 Warden with Railgun Performance ------------- Evolutions (8) 4000 Regions Visited (16) 3200 Robots Destroyed (175) 875 Value Destroyed (5604) 5604 Prototype IDs (36) 720 Alien Tech Used (0) 0 Bonus (1684) 1684 TOTAL SCORE: 16083 Bonus ------- High Alert Combat Kills 26 Follower Combat Kills 1139 Built Enhanced Grunts 300 A7 Reached Mainframe 300 Friendly Fire -81 Cogmind --------- Core Integrity 0/1450 Matter 300/300 Energy 98/100 System Corruption 24% Temperature Cool (9) Movement Core (50) Location -2/Research Parts ------- > --- POWER (1) -------- (None) > --- PROPULSION (4) --- (None) > --- UTILITY (16) ----- Advanced Signal Interpreter Core Analyzer Improved Hacking Suite Advanced Hacking Suite > --- WEAPON (2) ------- (None) > --- INVENTORY (5) ---- Seismic Detector Faulty Beam Splitter Compact HERF Cannon Enhanced Nova Cannon Advanced Datajack Peak State ------------ > --- POWER ------------ Micro Antimatter Reactor > --- PROPULSION ------- Nuclear Pulse Array Impulse Thruster Array > --- UTILITY ---------- Advanced Heat Sink Advanced Heat Sink Experimental Cooling System Long-range Sensor Array Advanced Signal Interpreter Advanced Target Analyzer Core Analyzer Core Analyzer Heavy Reactive Plating Graphene Brace Graphene Brace Improved Hacking Suite Advanced Hacking Suite > --- WEAPON ----------- Heavy Mace Lance > --- INVENTORY -------- Seismic Detector Beam Splitter Compact HERF Cannon Enhanced Nova Cannon Advanced Datajack [Rating: 128] Favorites ----------- Power Improved Ion Engine Engine Improved Ion Engine Power Core Micro Nuclear Core Reactor Micro Antimatter Reactor Propulsion Improved Flight Unit Treads Armored Treads Leg Improved Aluminum Leg Wheel Wheel Flight Unit Improved Flight Unit Utility Improved Hacking Suite Device Improved Sensor Array Storage Medium Storage Unit Processor Improved Signal Interpreter Hackware Improved Hacking Suite Protection Light Armor Plating Weapon Advanced Beam Cannon Energy Gun Medium Laser Energy Cannon Advanced Beam Cannon Ballistic Gun High-powered Shotgun Ballistic Cannon Magnetic Acceleration Cannon Launcher Rocket Launcher Special Weapon Improved Plasma Cutter Impact Weapon Hammer Slashing Weapon Scythe Piercing Weapon Lance Special Melee Weapon Improved Datajack Build | -11 -10 -9 -9 -8 -7 -7 -7 -6 -5 -4 -4 -4 -4 -4 -3 -2 ------- Run | Yrd Mat Mat Sto Mat Fac Was Fac Fac Fac Fac Ext Cet Arc Hub Res Res Slots Evolved 16 | . . 2 . 2 2 . . 2 2 2 . . . . 2 2 Power . | . . . . . . . . . . . . . . . . . Propulsion 2 | . . . . . 2 . . . . . . . . . . . Utility 14 | . . 2 . 2 . . . 2 2 2 . . . . 2 2 Weapon . | . . . . . . . . . . . . . . . . . Parts Attached 192 | 7 13 12 3 34 15 1 7 3 14 21 8 3 8 13 10 20 Power 19 | 1 1 1 . 4 2 . 1 . 1 1 1 1 . 2 . 3 Engine 6 | 1 1 1 . 2 1 . . . . . . . . . . . Core 10 | . . . . 2 1 . 1 . 1 1 1 1 . 2 . . Reactor 3 | . . . . . . . . . . . . . . . . 3 Propulsion 36 | 2 2 4 . 9 4 . 1 . 1 7 . . 2 1 1 2 Treads 11 | 2 2 3 . 4 . . . . . . . . . . . . Leg 2 | . . . . 2 . . . . . . . . . . . . Wheel 3 | . . . . 3 . . . . . . . . . . . . Hover . | . . . . . . . . . . . . . . . . . Flight 20 | . . 1 . . 4 . 1 . 1 7 . . 2 1 1 2 Utility 75 | 1 2 5 3 10 5 1 5 2 6 9 3 . 2 1 6 14 Device 38 | 1 1 3 1 5 2 . 3 1 5 2 2 . . . 4 8 Storage 6 | . 1 1 1 . 1 . 1 . . 1 . . . . . . Processor 8 | . . . . . 1 . 1 . . 1 . . . . . 5 Hackware 14 | . . . . . 1 1 . 1 1 5 1 . 2 . 2 . Protection 9 | . . 1 1 5 . . . . . . . . . 1 . 1 Artifact . | . . . . . . . . . . . . . . . . . Weapon 62 | 3 8 2 . 11 4 . . 1 6 4 4 2 4 9 3 1 Energy Gun 3 | 1 . . . 2 . . . . . . . . . . . . Energy Cannon 20 | . 2 2 . 3 . . . . . 2 2 1 1 6 1 . Ballistic Gun 13 | 2 4 . . 4 . . . 1 . . 1 . 1 . . . Ballistic Cannon 3 | . . . . . . . . . . . 1 1 1 . . . Launcher 7 | . 2 . . 1 2 . . . . 1 . . . 1 . . Special Weapon 1 | . . . . . . . . . . . . . 1 . . . Impact Weapon 7 | . . . . 1 2 . . . 3 . . . . . . 1 Slashing Weapon 2 | . . . . . . . . . . . . . . 1 1 . Piercing Weapon 1 | . . . . . . . . . . . . . . . 1 . Special Melee Weapon 5 | . . . . . . . . . 3 1 . . . 1 . . Unidentified Prototypes 7 | . . 1 . . . . 1 . 1 . . . . 1 2 1 Corrupted Parts 2 | . . . . 2 . . . . . . . . . . . . System Corruption 12 | . . . . 12 . . . . . . . . . . . . Parts Lost 61 | . 3 1 . 22 1 . . . 1 4 2 1 . 12 2 12 Power 11 | . 1 . . 3 1 . . . . 1 . 1 . 2 . 2 Propulsion 11 | . . . . 6 . . . . . 1 . . . 2 . 2 Utility 29 | . 1 1 . 8 . . . . 1 1 2 . . 6 1 8 Weapon 10 | . 1 . . 5 . . . . . 1 . . . 2 1 . Highest Loss Streak 11 | . 2 1 . 7 1 . . . 1 4 2 1 . 11 1 7 To Critical Strikes . | . . . . . . . . . . . . . . . . . Average Slot Usage (%) 90 | . 99 98 100 82 78 78 89 84 89 90 97 97 99 95 15 53 Engine 4 | . 14 11 11 2 . 7 4 . . . . . . . . . Core 3 | . . . . 6 6 . 2 6 5 4 5 4 5 4 . . Treads 9 | . 28 21 22 12 . . . . . . . . . . . . Flight 11 | . . . . . 29 30 30 26 23 19 21 21 21 20 1 6 Device 17 | . 14 28 22 18 13 7 7 11 16 12 15 21 21 15 2 17 Storage 7 | . 13 11 11 9 7 7 7 6 5 4 5 5 5 4 . . Processor 4 | . . . . . 3 7 12 13 11 10 8 5 5 4 . 8 Hackware 11 | . . . . . 6 9 15 13 18 32 30 31 31 30 10 8 Protection 3 | . . 3 11 13 . . . . . . . . . 3 . . Energy Cannon 8 | . 15 21 22 3 . . . . . . 4 3 1 8 . . Ballistic Gun 2 | . 6 . . 11 . . . . . . 4 . 2 . . . Impact Weapon 1 | . . . . . 5 7 7 6 4 2 . . . . . 2 Naked Turns . | . . . . . . . . . . . . . . . . . Heaviest Build 101 | 9 32 101 101 62 21 20 20 20 22 23 36 41 41 41 5 24 Greatest Support 44 | 40 40 40 40 44 20 20 21 21 21 21 21 21 21 21 16 29 Greatest Overweight (x) 19 | . . 11 2 19 1 . . . 1 1 1 1 1 2 . 4 Average Overweight (x) . | . . 1 1 1 . . . . . . . 1 1 . . . Largest Inventory Capacity 25 | 5 15 25 25 20 20 10 10 10 10 10 10 10 10 10 5 5 Average Capacity 14 | 5 14 23 21 20 10 10 10 10 10 9 10 10 10 9 5 5 Most Carried 20 | 2 8 15 18 20 20 9 10 10 10 10 10 10 10 10 5 5 Average Carried 11 | 1 4 13 16 17 9 9 9 9 9 9 9 10 9 8 4 4 Final Capacity 25 | 5 15 25 20 20 10 10 10 10 10 10 10 10 10 5 5 5 Final Carried 19 | 2 8 15 17 19 9 9 10 10 10 10 10 10 10 5 4 5 Class Distribution -------------------- 41% | Mutant 16% | Wizard-Mutant 14% | Hacker-Scout 5% | Hacker-Mutant 5% | Wizard-Skirmisher 4% | Scavenger-Mutant 3% | Wizard-Scout 3% | Hacker-Sprinter Dominant Class ---------------- Mutant | -10/Materials Mutant | -9/Materials Mutant | -9/Storage Mutant | -8/Materials Sprinter | -7/Factory Sprinter | -7/Waste Hacker-Scout | -7/Factory Hacker-Scout | -6/Factory Hacker-Scout | -5/Factory Wizard-Scout | -4/Factory Wizard-Skirmisher | -4/Extension Wizard-Mutant | -4/Cetus Wizard-Mutant | -4/Archives Wizard-Mutant | -4/Hub_04(d) Hacker-Mutant | -3/Research Hacker-Mutant | -2/Research Resources | -11 -10 -9 -9 -8 -7 -7 -7 -6 -5 -4 -4 -4 -4 -4 -3 -2 ----------- Run | Yrd Mat Mat Sto Mat Fac Was Fac Fac Fac Fac Ext Cet Arc Hub Res Res Matter Collected 3000 | 286 198 120 42 601 33 . 317 48 62 71 370 73 338 142 . 299 Remotely 578 | 10 188 10 . 370 . . . . . . . . . . . . Salvage Created 6996 | 145 651 1436 1000 1293 66 . 78 97 77 129 353 47 156 774 . 694 Parts 386 | 9 51 79 66 61 3 . 1 1 2 10 4 3 9 40 . 47 Haulers Intercepted 11 | . 2 4 5 . . . . . . . . . . . . . Recyclers Shooed 6 | . . . 3 1 . . . . . . 1 . . 1 . . Parts Field Recycled . | . . . . . . . . . . . . . . . . . Retrieved Matter . | . . . . . . . . . . . . . . . . . Parts Self-Destructed . | . . . . . . . . . . . . . . . . . Prevented . | . . . . . . . . . . . . . . . . . Kills | -11 -10 -9 -9 -8 -7 -7 -7 -6 -5 -4 -4 -4 -4 -4 -3 -2 ------- Run | Yrd Mat Mat Sto Mat Fac Was Fac Fac Fac Fac Ext Cet Arc Hub Res Res Combat Hostiles Destroyed 112 | . 13 29 15 27 3 . . 1 . 5 1 . 1 10 . 7 Melee 9 | . . . . 1 . . . . . . . . . 1 . 7 Guns 21 | . 8 . . 12 . . . 1 . . . . . . . . Cannons 64 | . 2 27 15 9 . . . . . . 1 . 1 9 . . AOE 14 | . 3 . . 3 3 . . . . 5 . . . . . . Classes Destroyed 14 | 3 6 2 . 1 . . . . . . . . . 1 . 1 Worker 6 | 1 2 . . 1 . . . . . . . . . 2 . . Builder 4 | . 1 . 1 1 . . 1 . . . . . . . . . Tunneler 6 | 3 . . . 1 2 . . . . . . . . . . . Hauler 11 | . 2 4 5 . . . . . . . . . . . . . Recycler 9 | 1 1 . 1 1 . . . . . . 2 . . 1 . 2 Operator 7 | . 1 1 . . . . 1 1 . . . . 3 . . . Watcher 20 | . 3 4 1 2 . . 1 2 3 2 . 1 . 1 . . Swarmer 30 | . 6 7 4 4 3 . . 1 . 5 . . . . . . Grunt 39 | . 7 15 2 13 . . . . . . . . . 2 . . Duelist 7 | . . 1 1 5 . . . . . . . . . . . . Sentry 23 | . . 6 8 4 . . . . . . 1 . 1 2 . 1 Specialist 3 | . . . . . . . . . . . . . . 3 . . Hunter 4 | . . . . 1 . . . . . . . . . 3 . . Programmer 6 | . . . . . . . . . . . . . . . . 6 Best Kill Streak 7 | 3 5 5 4 6 3 . 1 1 1 5 2 1 1 7 . 5 Combat Bots Only 6 | . 3 4 4 6 3 . . 1 . 5 1 . 1 4 . 3 Max Kills in Single Turn 3 | 1 2 2 2 3 1 . 1 1 1 3 1 1 1 2 . 1 Gunslinging . | . . . . . . . . . . . . . . . . . Exploded 3 | . 2 . . 2 1 . . . . 3 . . . . . . Melee 1 | . . . . 1 . . . . . . . . . 1 . 1 Uniques/NPCs Destroyed . | . . . . . . . . . . . . . . . . . Combat | -11 -10 -9 -9 -8 -7 -7 -7 -6 -5 -4 -4 -4 -4 -4 -3 -2 -------- Run | Yrd Mat Mat Sto Mat Fac Was Fac Fac Fac Fac Ext Cet Arc Hub Res Res Hostile Shots Fired 840 | . 64 125 34 170 10 . . 36 6 22 10 14 . 159 56 134 Missed 256 | . 15 34 12 40 4 . . 21 1 7 5 7 . 40 27 43 Damage Taken 10590 | . 588 1066 287 2389 228 . . 157 103 287 200 236 51 1880 442 2676 Core 3478 | . 97 111 31 395 98 . . 15 39 59 68 13 . 709 390 1453 Absorbed by Shields 114 | . . . . . . . . . . . 80 34 . . . . Redirected to Shielding 32 | . . . . 32 . . . . . . . . . . . . Regen/Repaired (Parts) 292 | . . . . . . . . . 17 185 . . . . . 90 Core Remaining (%) 69 | 100 61 . 64 28 . . 86 98 96 . . . . 26 70 . Volleys Fired 497 | 16 52 96 38 115 3 . . 2 . 13 41 8 70 43 . . Largest 2 | 2 2 2 2 2 1 . . 1 . 1 2 2 2 2 . . Hottest 180 | 70 120 136 136 136 33 . . 25 . 90 123 143 143 180 . . Shots Fired 821 | 32 102 192 76 203 3 . . 2 . 13 45 16 74 63 . . Gun 282 | 32 75 . . 114 . . . 2 . . 5 . 54 . . . Cannon 514 | . 24 192 76 88 . . . . . 7 40 16 8 63 . . Launcher 13 | . 3 . . 1 3 . . . . 6 . . . . . . Special 12 | . . . . . . . . . . . . . 12 . . . Kinetic 233 | 16 38 . . 100 . . . 2 . . 5 8 58 6 . . Thermal 562 | 16 61 192 76 89 . . . . . 7 40 8 16 57 . . Explosive 13 | . 3 . . 1 3 . . . . 6 . . . . . . Electromagnetic 13 | . . . . 13 . . . . . . . . . . . . Robot Hit Streak 22 | 3 9 22 12 11 . . . 3 . 5 9 6 7 9 . . Robot Miss Streak 8 | 2 5 6 3 8 . . . 1 . 2 1 2 7 4 . . Penetration Max 1 | . . . . . . . . . . . . . 1 . . . Secondary Targets . | . . . . . . . . . . . . . . . . . Shots Hit Robots 553 | 17 66 116 47 148 2 . 4 5 4 7 17 11 38 40 3 28 Core Hits 253 | 9 32 39 24 65 3 . . 2 1 8 10 2 19 23 1 15 Critical Kills 4 | . . 1 . 3 . . . . . . . . . . . . Critical Parts Destroyed 6 | . . . . 2 . . 1 2 . . . . 1 . . . Critical Strikes 22 | 3 2 1 . 5 . . 1 2 . . . . 1 2 . 5 Burn 5 | 3 2 . . . . . . . . . . . . . . . Meltdown 1 | . . 1 . . . . . . . . . . . . . . Destroy 5 | . . . . 4 . . . . . . . . 1 . . . Smash 4 | . . . . 1 . . 1 2 . . . . . . . . Sever 2 | . . . . . . . . . . . . . . 2 . . Impale 5 | . . . . . . . . . . . . . . . . 5 Melee Attacks 140 | . . . . 9 7 . 5 13 37 7 . . . 12 6 44 Impact 83 | . . . . 9 7 . 5 13 37 7 . . . . . 5 Slashing 17 | . . . . . . . . . . . . . . 12 5 . Piercing 40 | . . . . . . . . . . . . . . . 1 39 Sneak Attacks 8 | . . . . 1 2 . 2 . . 1 . . . . . 2 Combat Hostiles . | . . . . . . . . . . . . . . . . . Follow-up Attacks 1 | . . . . . . . . . . . . . . . . 1 Damage Inflicted 13667 | 170 1108 2320 1133 3001 293 . 179 140 119 556 546 355 985 1583 100 1079 Guns 2897 | 170 538 . . 1300 . . . 40 . . 98 . 751 . . . Cannons 6951 | . 230 2280 1078 1298 . . . . . . 448 355 131 1131 . . Explosions 1218 | . 329 . . 198 178 . . . . 398 . . . 115 . . Melee 2361 | . . . . 193 115 . 179 100 119 158 . . . 318 100 1079 Ramming 147 | . 11 40 55 12 . . . . . . . . 10 19 . . Kinetic 2653 | 68 215 . . 1168 . . . 40 . . 98 130 817 117 . . Thermal 7505 | 102 711 2280 1078 1374 . . . . . . 448 225 158 1129 . . Explosive 885 | . 171 . . 138 178 . . . . 398 . . . . . . Electromagnetic 116 | . . . . 116 . . . . . . . . . . . . Impact 902 | . . . . 193 115 . 179 100 119 158 . . . . . 38 Slashing 418 | . . . . . . . . . . . . . . 318 100 . Piercing 1041 | . . . . . . . . . . . . . . . . 1041 Highest Corruption 24 | . 1 1 1 12 2 2 2 . . . 6 1 1 1 . 24 Average Corruption 4 | . 1 1 1 11 1 2 1 . . . 3 1 1 1 . 13 Corruption Purged 7 | . . . . . . . 2 . . . 5 . . . . . Corruption Blocked . | . . . . . . . . . . . . . . . . . Effects 110 | . 3 . 4 51 1 . 2 . . . 10 2 6 7 . 24 Message Errors 24 | . 1 . 1 7 . . 1 . . . 5 1 2 3 . 3 Matter Fused 26 | . . . 2 12 1 . . . . . 3 . . 1 . 7 Heat Flow Errors 12 | . . . . 9 . . 1 . . . . . 1 . . 1 Energy Discharges 19 | . 1 . . 9 . . . . . . . . 2 1 . 6 Parts Rejected 1 | . . . . . . . . . . . . . . . . 1 Parts Fused 1 | . . . . 1 . . . . . . . . . . . . Data Loss (minor) 19 | . 1 . 1 7 . . . . . . 1 1 1 2 . 5 Data Loss (major) 4 | . . . . 3 . . . . . . 1 . . . . . Misdirections 2 | . . . . 1 . . . . . . . . . . . 1 Weapon Failures 2 | . . . . 2 . . . . . . . . . . . . Overload Shots . | . . . . . . . . . . . . . . . . . Overflow Damage 791 | . 60 25 10 102 53 . 109 85 24 31 5 . . 10 . 277 Projectiles 51 | . . 25 10 1 . . . . . . 5 . . 10 . . Explosions 114 | . 60 . . 31 . . . . . 23 . . . . . . Melee 626 | . . . . 70 53 . 109 85 24 8 . . . . . 277 Knockbacks 9 | . . 1 . 2 1 . 1 3 1 . . . . . . . Impact 9 | . . 1 . 2 1 . 1 3 1 . . . . . . . Kinetic . | . . . . . . . . . . . . . . . . . Secondary . | . . . . . . . . . . . . . . . . . Self-Inflicted Damage 224 | . 108 . . 85 17 . . . . . . . 5 9 . . Shots 5 | . 2 . . 2 1 . . . . . . . . . . . Rammed 18 | . 3 4 7 1 . . . . . . . . 1 2 . . Targets Rammed 20 | . 3 4 8 2 . . . . . . . . 1 2 . . Kicked 1 | . . . . 1 . . . . . . . . . . . . Crushed 1 | . . . 1 . . . . . . . . . . . . . Highest Temperature 372 | 100 240 153 96 372 . . 102 3 . . . . 61 190 . 101 Average Temperature 66 | 37 81 26 29 143 . . 51 3 . . . . 35 74 . 58 Received Heat Transfer 2176 | . 168 330 66 711 18 . . 12 . . 36 31 . 660 36 108 Effects 4 | . 1 . . 3 . . . . . . . . . . . . Shutdowns 1 | . . . . 1 . . . . . . . . . . . . Interference 1 | . 1 . . . . . . . . . . . . . . . Short Circuit 1 | . . . . 1 . . . . . . . . . . . . Damage (minor) 1 | . . . . 1 . . . . . . . . . . . . Siege Activations . | . . . . . . . . . . . . . . . . . Robots Corrupted . | . . . . . . . . . . . . . . . . . Combat Hostiles . | . . . . . . . . . . . . . . . . . Parts Fried 25 | . . . . 2 6 . 3 6 5 3 . . . . . . Impact Corruptions 24 | . . 1 . 3 3 . 5 7 3 1 . . . . . 1 Robots Melted 3 | . . 2 . 1 . . . . . . . . . . . . Combat Hostiles 3 | . . 2 . 1 . . . . . . . . . . . . Parts Melted 23 | . 3 10 3 3 . . . . . . 4 . . . . . Heat Transferred 12587 | 518 1691 4477 1961 2418 . . . . . . 700 350 322 150 . . Parts Sabotaged . | . . . . . . . . . . . . . . . . . Parts Stolen . | . . . . . . . . . . . . . . . . . Parts Stripped . | . . . . . . . . . . . . . . . . . Power Chain Reactions 2 | . . . . 1 . . . . . . . . . 1 . . Alert | -11 -10 -9 -9 -8 -7 -7 -7 -6 -5 -4 -4 -4 -4 -4 -3 -2 ------- Run | Yrd Mat Mat Sto Mat Fac Was Fac Fac Fac Fac Ext Cet Arc Hub Res Res Peak Influence 424 | 25 424 260 423 380 405 171 164 273 222 362 131 86 291 326 150 213 Initial 178 | . 16 87 107 178 87 141 119 66 58 . 4 22 34 40 48 84 Average 142 | 8 221 130 279 228 205 159 114 130 130 53 39 74 194 55 67 96 Maximum Alert Level 2 | . 2 1 2 1 2 . . 1 1 1 . . 1 1 . 1 Low Security (%) 68 | 100 23 72 17 37 50 100 100 93 86 91 100 100 27 92 100 97 Level 1 29 | . 72 27 71 62 39 . . 6 13 8 . . 72 7 . 2 Level 2 1 | . 4 . 11 . 9 . . . . . . . . . . . Level 3 . | . . . . . . . . . . . . . . . . . Level 4 . | . . . . . . . . . . . . . . . . . Level 5 . | . . . . . . . . . . . . . . . . . High Security . | . . . . . . . . . . . . . . . . . Max Security . | . . . . . . . . . . . . . . . . . Squads Dispatched 36 | . 3 2 . 5 2 . 2 2 5 2 . . . 6 1 6 Investigation 17 | . 2 1 . 3 2 . 1 2 1 2 . . . . . 3 Extermination 6 | . . . . . . . . . 3 . . . . 1 . 2 Reinforcement 12 | . 1 1 . 1 . . 1 . 1 . . . . 5 1 1 Assault 1 | . . . . 1 . . . . . . . . . . . . Garrison . | . . . . . . . . . . . . . . . . . Intercept . | . . . . . . . . . . . . . . . . . Searches Triggered . | . . . . . . . . . . . . . . . . . Construction Impeded . | . . . . . . . . . . . . . . . . . Haulers Reinforced . | . . . . . . . . . . . . . . . . . Active Scanning Responses . | . . . . . . . . . . . . . . . . . Cargo Convoy Interrupts . | . . . . . . . . . . . . . . . . . Stealth | -11 -10 -9 -9 -8 -7 -7 -7 -6 -5 -4 -4 -4 -4 -4 -3 -2 --------- Run | Yrd Mat Mat Sto Mat Fac Was Fac Fac Fac Fac Ext Cet Arc Hub Res Res Distress Signals 18 | . 1 3 . 3 1 . . . 1 . 2 1 . 3 2 1 Communications Jammed . | . . . . . . . . . . . . . . . . . Distress Signals . | . . . . . . . . . . . . . . . . . Times Spotted 324 | . 18 48 18 50 13 5 2 12 16 16 11 5 43 27 11 29 Peak Tracking Total 13 | . 4 6 4 6 6 5 1 3 6 11 3 5 2 13 7 12 Tactical Retreats 29 | . 1 . . 9 6 . . 1 3 2 . . . 1 3 3 Traps | -11 -10 -9 -9 -8 -7 -7 -7 -6 -5 -4 -4 -4 -4 -4 -3 -2 ------- Run | Yrd Mat Mat Sto Mat Fac Was Fac Fac Fac Fac Ext Cet Arc Hub Res Res Traps Triggered 21 | . 1 1 . 1 3 . 2 1 3 1 5 . . . . 3 Indirectly . | . . . . . . . . . . . . . . . . . Trap Hack Attempts 9 | . . . . . . . . . . . . . . 9 . . Triggered . | . . . . . . . . . . . . . . . . . Disarmed . | . . . . . . . . . . . . . . . . . Reprogrammed 6 | . . . . . . . . . . 2 . . . 4 . . Reused 2 | . . . . . . . . . . . . . . 2 . . Traps Extracted . | . . . . . . . . . . . . . . . . . Installed . | . . . . . . . . . . . . . . . . . Triggered 2 | . . . . . . . . . . . . . . 2 . . Machines | -11 -10 -9 -9 -8 -7 -7 -7 -6 -5 -4 -4 -4 -4 -4 -3 -2 ---------- Run | Yrd Mat Mat Sto Mat Fac Was Fac Fac Fac Fac Ext Cet Arc Hub Res Res Machines Disabled 16 | . 3 1 1 1 1 . . . . 1 . . 6 2 . . Max in Single Turn 2 | . 2 1 1 1 1 . . . . 1 . . 1 1 . . Garrison Access 5 | . . . . 1 . . 2 . . 1 . . . 1 . . Machines Repaired . | . . . . . . . . . . . . . . . . . Machines Dismantled . | . . . . . . . . . . . . . . . . . Machines Sabotaged . | . . . . . . . . . . . . . . . . . Overloaded Fab Kills . | . . . . . . . . . . . . . . . . . Hacking | -11 -10 -9 -9 -8 -7 -7 -7 -6 -5 -4 -4 -4 -4 -4 -3 -2 --------- Run | Yrd Mat Mat Sto Mat Fac Was Fac Fac Fac Fac Ext Cet Arc Hub Res Res Machines Accessed 91 | . 6 4 4 7 2 . 15 8 6 10 18 1 1 4 1 4 Terminals 75 | . 6 4 4 7 2 . 11 7 4 6 16 1 . 3 1 3 Fabricators 4 | . . . . . . . . 1 1 2 . . . . . . Repair Stations 4 | . . . . . . . 1 . 1 1 . . . . . 1 Recycling Units 2 | . . . . . . . . . . . 2 . . . . . Scanalyzers 1 | . . . . . . . 1 . . . . . . . . . Garrison Access 4 | . . . . . . . 2 . . 1 . . . 1 . . Total Hacks 304 | . 15 15 11 22 6 . 41 32 19 41 40 1 14 26 2 19 Successful 190 | . 5 9 6 10 . . 20 15 11 34 34 1 14 18 . 13 Failed 113 | . 10 6 5 12 6 . 21 17 8 7 5 . . 8 2 6 Catastrophic 20 | . 2 2 1 3 1 . 4 3 1 1 1 . . . . 1 Database Lockouts 1 | . . . . . . . . . . . 1 . . . . . Manual 159 | . 11 12 5 17 6 . 26 20 12 13 10 1 2 14 1 9 Terminals 253 | . 15 15 11 22 6 . 31 29 14 28 38 1 . 25 2 16 Fabricators 9 | . . . . . . . . 3 2 4 . . . . . . Repair Stations 16 | . . . . . . . 2 . 3 8 . . . . . 3 Recycling Units 2 | . . . . . . . . . . . 2 . . . . . Scanalyzers 5 | . . . . . . . 5 . . . . . . . . . Garrison Access 5 | . . . . . . . 3 . . 1 . . . 1 . . Terminal Hacks 118 | . 1 5 4 3 . . 5 6 4 18 31 1 14 16 . 10 Record 22 | . . . . . . . 2 . . . 3 . 14 2 . 1 Part Schematic 12 | . . . . . . . . 1 . . 8 . . 3 . . Robot Analysis 2 | . . . . . . . . . . . 1 . . . . 1 Prototype ID Bank 13 | . 1 2 2 . . . 2 2 . 2 2 . . . . . Open Door 12 | . . . 1 . . . . . . 1 9 1 . . . . Level Access Points 5 | . . . 1 1 . . . . . 1 . . . 1 . 1 Branch Access Points 3 | . . . . . . . . 1 1 1 . . . . . . Machine Index 2 | . . . . . . . . . . . 1 . . 1 . . Terminal Index 4 | . . . . . . . 1 1 . 1 . . . 1 . . Repair Station Index 1 | . . . . . . . . . . 1 . . . . . . Alert Level 2 | . . . . . . . . . . 2 . . . . . . Unreport Threat 17 | . . 3 . 2 . . . . . 3 2 . . 4 . 3 Locate Traps 3 | . . . . . . . . . . 1 2 . . . . . Reprogram Traps 1 | . . . . . . . . . . 1 . . . . . . Dispatch Records 1 | . . . . . . . . . . . 1 . . . . . Patrol Status 1 | . . . . . . . . . . . . . . . . 1 Reinforcement Status 1 | . . . . . . . . . . . . . . 1 . . Recall Investigation 6 | . . . . . . . . 1 1 2 . . . . . 2 Recall Extermination 3 | . . . . . . . . . 2 . . . . 1 . . Recall Reinforcements 2 | . . . . . . . . . . . . . . 2 . . Registered Components 1 | . . . . . . . . . . 1 . . . . . . Zone Layout 4 | . . . . . . . . . . 1 2 . . . . 1 Fabricator Hacks 8 | . . . . . . . . 2 2 4 . . . . . . Load Schematic 4 | . . . . . . . . 1 1 2 . . . . . . Build 4 | . . . . . . . . 1 1 2 . . . . . . Repair Station Hacks 13 | . . . . . . . 1 . 2 8 . . . . . 2 Scan Component 7 | . . . . . . . 1 . 1 4 . . . . . 1 Repair 6 | . . . . . . . . . 1 4 . . . . . 1 Recycling Unit Hacks 2 | . . . . . . . . . . . 2 . . . . . Report Inventory 2 | . . . . . . . . . . . 2 . . . . . Scanalyzer 5 | . . . . . . . 5 . . . . . . . . . Insert Component 1 | . . . . . . . 1 . . . . . . . . . Analyze 4 | . . . . . . . 4 . . . . . . . . . Garrison Access Hacks 4 | . . . . . . . 2 . . 1 . . . 1 . . Seal Access 4 | . . . . . . . 2 . . 1 . . . 1 . . Unauthorized Hacks 39 | . 4 4 2 7 . . 7 6 3 3 1 . . 1 . 1 Terminals 39 | . 4 4 2 7 . . 7 6 3 3 1 . . 1 . 1 Assimilate 5 | . . . . . . . 2 2 1 . . . . . . . Botnet 34 | . 4 4 2 7 . . 5 4 2 3 1 . . 1 . 1 Fabricators . | . . . . . . . . . . . . . . . . . Repair Stations . | . . . . . . . . . . . . . . . . . Recycling Units . | . . . . . . . . . . . . . . . . . Scanalyzers . | . . . . . . . . . . . . . . . . . Garrison Access . | . . . . . . . . . . . . . . . . . Data Cores Recovered 2 | . . . . 1 . . . 1 . . . . . . . . Used . | . . . . . . . . . . . . . . . . . Hacking Detections 68 | . 5 3 2 7 2 . 11 8 6 8 7 1 . 3 1 4 Full Trace Events 17 | . 3 1 . 3 1 . 1 2 1 2 . . . . . 3 Feedback Events 3 | . 1 . . . 1 . . . . . . . . . . 1 Corruption 3 | . 1 . . . 1 . . . . . . . . . . 1 Feedback Blocked . | . . . . . . . . . . . . . . . . . Robot Schematics Acquired . | . . . . . . . . . . . . . . . . . Robots Built . | . . . . . . . . . . . . . . . . . Authchips . | . . . . . . . . . . . . . . . . . Time . | . . . . . . . . . . . . . . . . . Total Robot Build Rating . | . . . . . . . . . . . . . . . . . Part Schematics Acquired 13 | . . . . . . . 1 1 . . 8 . . 3 . . Parts Built 4 | . . . . . . . . 1 1 2 . . . . . . Authchips . | . . . . . . . . . . . . . . . . . Time 332 | . . . . . . . . 47 95 190 . . . . . . Total Part Build Rating 20 | . . . . . . . . 5 5 10 . . . . . . Parts Repaired 6 | . . . . . . . . . 1 4 . . . . . 1 Time 151 | . . . . . . . . . 19 98 . . . . . 34 Parts Recycled . | . . . . . . . . . . . . . . . . . Recycled Matter . | . . . . . . . . . . . . . . . . . Retrieved Matter . | . . . . . . . . . . . . . . . . . Retrieved Components . | . . . . . . . . . . . . . . . . . Parts Scanalyzed 1 | . . . . . . . 1 . . . . . . . . . Part Schematics Acquired 1 | . . . . . . . 1 . . . . . . . . . Parts Damaged . | . . . . . . . . . . . . . . . . . Bothacking | -11 -10 -9 -9 -8 -7 -7 -7 -6 -5 -4 -4 -4 -4 -4 -3 -2 ------------ Run | Yrd Mat Mat Sto Mat Fac Was Fac Fac Fac Fac Ext Cet Arc Hub Res Res Used RIF Installer . | . . . . . . . . . . . . . . . . . Robots Hacked . | . . . . . . . . . . . . . . . . . Non-combat . | . . . . . . . . . . . . . . . . . Combat . | . . . . . . . . . . . . . . . . . Robot Hacks Applied . | . . . . . . . . . . . . . . . . . Relay Couplers Released 3 | . . . . 3 . . . . . . . . . . . . Machine Destruction 3 | . . . . 3 . . . . . . . . . . . . Fabnet Peak Effective % . | . . . . . . . . . . . . . . . . . Robots Rewired . | . . . . . . . . . . . . . . . . . Allies Hacked . | . . . . . . . . . . . . . . . . . Hacks Repelled . | . . . . . . . . . . . . . . . . . Allies | -11 -10 -9 -9 -8 -7 -7 -7 -6 -5 -4 -4 -4 -4 -4 -3 -2 -------- Run | Yrd Mat Mat Sto Mat Fac Was Fac Fac Fac Fac Ext Cet Arc Hub Res Res Total Allies 31 | . . . 10 . . . 1 1 1 . 13 5 . . . . Largest Group 10 | . . . 10 8 . . 1 2 1 . 7 7 7 5 . . Highest-Rated Group 663 | . . . 88 72 . . 26 52 26 . 415 663 663 480 . . Highest-Rated Ally 159 | . . . 16 16 . . 26 26 26 . 159 143 143 96 . . Total Orders 7 | . . . . . . . 2 2 . . . . 2 1 . . STAY 5 | . . . . . . . 1 2 . . . . 1 1 . . FOLLOW 2 | . . . . . . . 1 . . . . . 1 . . . Ally Attacks 195 | . . . 18 29 . . . . . . 57 39 22 30 . . Total Damage 5122 | . . . 188 266 . . . . . . 1806 907 1014 941 . . Kills 25 | . . . 2 5 . . . . . . 9 4 3 2 . . Allies Corrupted . | . . . . . . . . . . . . . . . . . Allies Melted . | . . . . . . . . . . . . . . . . . Intel | -11 -10 -9 -9 -8 -7 -7 -7 -6 -5 -4 -4 -4 -4 -4 -3 -2 ------- Run | Yrd Mat Mat Sto Mat Fac Was Fac Fac Fac Fac Ext Cet Arc Hub Res Res Robot Analysis Total 2 | . . . . . . . . . . . 1 . . . . 1 Derelict Logs Recovered . | . . . . . . . . . . . . . . . . . Drone Launches . | . . . . . . . . . . . . . . . . . Drone Recoveries . | . . . . . . . . . . . . . . . . . Exploration | -11 -10 -9 -9 -8 -7 -7 -7 -6 -5 -4 -4 -4 -4 -4 -3 -2 ------------- Run | Yrd Mat Mat Sto Mat Fac Was Fac Fac Fac Fac Ext Cet Arc Hub Res Res Turns Passed 13517 | 185 989 2360 1064 1828 326 45 770 777 800 573 1282 288 503 944 238 545 Spaces Moved 12235 | 83 498 681 335 574 832 132 1492 1664 1671 1016 837 167 328 746 396 783 Core 374 | 4 . 2 . 14 . . . . . . . . . 39 282 33 Treads 2055 | 79 498 679 335 464 . . . . . . . . . . . . Legs 14 | . . . . 14 . . . . . . . . . . . . Wheels 82 | . . . . 82 . . . . . . . . . . . . Hover . | . . . . . . . . . . . . . . . . . Flight 9710 | . . . . . 832 132 1492 1664 1671 1016 837 167 328 707 114 750 Fastest Speed 29 | 50 160 160 250 110 31 31 29 29 29 29 29 97 97 32 45 39 Average Speed 78 | 154 160 294 266 235 31 31 29 29 29 29 91 97 97 94 48 41 Slowest Speed 1000 | 160 160 600 330 1000 101 31 31 29 97 100 97 97 97 177 50 250 Overloaded Moves . | . . . . . . . . . . . . . . . . . Propulsion Burnouts . | . . . . . . . . . . . . . . . . . Robots Hopped 69 | . . . . . 3 . 6 20 17 16 . . . . 1 6 Cave-ins Triggered 1 | . . . . . . . . . . . 1 . . . . . Exploration Rate (%) 48 | 7 87 70 61 48 30 83 48 31 34 22 65 73 92 38 11 28 Regions Visited 16 Branch Regions 5 Pre-discovered Areas . | . . . . . . . . . . . . . . . . . Known Exits Taken 10 | . . . 1 1 . . 1 1 1 1 1 1 1 1 . . Unknown Exits Taken 4 | 1 1 1 . . . . . . . . . . . . 1 . Scrap Searched . | . . . . . . . . . . . . . . . . . Spaces Dug 82 | . . . . . 2 . . 7 23 8 19 . . 16 1 6 Terrain Destroyed 220 | . 46 . . 16 9 . . 7 23 40 25 4 10 33 1 6 Melee 40 | . . . . . 2 . . 7 23 1 . . . . 1 6 Projectile 70 | . . . . . . . . . . 7 25 4 10 24 . . AOE 110 | . 46 . . 16 7 . . . . 32 . . . 9 . . Terrain Rammed . | . . . . . . . . . . . . . . . . . Walls Destroyed . | . . . . . . . . . . . . . . . . . Machines Disabled . | . . . . . . . . . . . . . . . . . Actions | -11 -10 -9 -9 -8 -7 -7 -7 -6 -5 -4 -4 -4 -4 -4 -3 -2 --------- Run | Yrd Mat Mat Sto Mat Fac Was Fac Fac Fac Fac Ext Cet Arc Hub Res Res Total 14938 | 107 591 846 416 824 892 134 1813 1913 1896 1243 1303 276 425 900 430 929 Wait 1573 | . 15 18 25 69 9 2 272 230 168 184 323 97 14 54 11 82 Move 12085 | 82 497 680 334 573 827 131 1479 1624 1637 984 835 166 327 745 393 771 Hop 65 | . . . . . 2 . 6 19 16 15 . . . . 1 6 Pick Up 67 | 2 6 15 4 11 4 . 3 2 1 7 3 . 1 2 4 2 Fast Attach 106 | 6 4 7 . 22 1 1 2 1 10 16 3 3 3 3 6 18 Attach 50 | . 2 1 . 9 13 . . 2 . 5 4 . 1 8 4 1 Detach 51 | . 2 5 . 5 12 . . 1 1 7 1 . 2 12 1 2 Swap 36 | 1 7 4 3 3 1 . 5 . 4 . 1 . 4 2 . 1 Drop 81 | . 3 16 4 6 13 . 5 1 4 5 1 2 2 8 4 7 Fire 497 | 16 52 96 38 115 3 . . 2 . 13 41 8 70 43 . . Melee 135 | . . . . 9 7 . 5 13 37 7 . . . 12 6 39 Ram 3 | . . . . . . . . . . . . . 1 2 . . Kick 1 | . . . . 1 . . . . . . . . . . . . Crush 16 | . 3 4 8 1 . . . . . . . . . . . . Escape Stasis 163 | . . . . . . . 36 18 18 . 91 . . . . . Rewire . | . . . . . . . . . . . . . . . . . Trap 9 | . . . . . . . . . . . . . . 9 . . Miscellaneous . | . . . . . . . . . . . . . . . . . Route ------- -11/Scrapyard -10/Materials (discovered 4 exits: *Mat x2 / [*Min x2]) -9/Materials (discovered 2 exits: [*Min] / *Sto) -9/Storage -8/Materials (discovered 3 exits: *Fac x3) -7/Factory -7/Waste -7/Factory (discovered 2 exits: *Fac x2) -6/Factory (discovered 3 exits: *Fac / *Low x2) -5/Factory (discovered 4 exits: *Fac x2 / Upp x2) -4/Factory (discovered 8 exits: *Res x4 / *Upp x2 / *Ext x2) -4/Extension (discovered 2 exits: *Res / *Cet) -4/Cetus -4/Archives (discovered 3 exits: *Res / *Hub x2) -4/Hub_04(d) (discovered 4 exits: *Res x4) -3/Research -2/Research (discovered 3 exits: *Acc x3) History --------- Turn | Location | Event 43 | -11/Scrapyard | Discovered new exit (range 12) 186 | -11/Scrapyard | Entered Materials 302 | -10/Materials | Build established: Mutant 615 | -10/Materials | Discovered new exit (range 16) 718 | -10/Materials | Discovered new exit (range 13) 968 | -10/Materials | Discovered new exit (range 9) 1082 | -10/Materials | Discovered new exit (range 13) 1175 | -10/Materials | Entered another Materials area 1175 | -9/Materials | Evolved 2 slots: Utility x2 1956 | -9/Materials | Discovered new exit (range 10) 2434 | -9/Materials | Discovered new exit (range 8) 3535 | -9/Materials | Entered Storage 4382 | -9/Storage | Identified exit to Materials 4392 | -9/Storage | Assisted by bots powering up and referring to "LRC-V3" 4599 | -9/Storage | Entered Materials 4599 | -8/Materials | Accompanied by 8 allies 4599 | -8/Materials | Evolved 2 slots: Utility x2 4682 | -8/Materials | Lost 8 allies 4792 | -8/Materials | Lost 7 parts (1p2n3u1w) 4974 | -8/Materials | Lost 3 parts (1p1n1u) 5084 | -8/Materials | Build established: Scavenger-Mutant 5111 | -8/Materials | Core integrity fell below 50% 5143 | -8/Materials | Lost 5 parts (1p1n3w) 5259 | -8/Materials | System corruption reached 10% 5647 | -8/Materials | Build established: Mutant 6065 | -8/Materials | Discovered new exit (range 3) 6122 | -8/Materials | Identified exit to Factory 6427 | -8/Materials | Entered Factory 6427 | -7/Factory | Evolved 2 slots: Propulsion x2 6749 | -7/Factory | Build established: Sprinter 6753 | -7/Factory | Sucked down chute 6753 | -7/Factory | Entered Waste 6763 | -7/Waste | Spotted C-40 Crusher 6764 | -7/Waste | Spotted C-40 Crusher 6766 | -7/Waste | Spotted C-40 Crusher 6768 | -7/Waste | Spotted C-40 Crusher 6776 | -7/Waste | Spotted C-40 Crusher 6787 | -7/Waste | Discovered new exit (range 12) 6790 | -7/Waste | Spotted C-40 Crusher 6797 | -7/Waste | Identified exit to Factory 6798 | -7/Waste | Entered Factory 6973 | -7/Factory | Discovered new exit (range 7) 6974 | -7/Factory | Identified exit to Factory 7430 | -7/Factory | Discovered exit to Factory (range 13) 7483 | -7/Factory | Build established: Hacker-Scout 7568 | -7/Factory | Entered another Factory area 7568 | -6/Factory | Accompanied by 1 ally 7568 | -6/Factory | Evolved 2 slots: Utility x2 7762 | -6/Factory | Discovered new exit (range 19) 7854 | -6/Factory | Identified exit to Factory 7920 | -6/Factory | Identified exit to Lower Caves 8073 | -6/Factory | Fabricated Imp. Hacking Suite? 8345 | -6/Factory | Entered another Factory area 8345 | -5/Factory | Evolved 2 slots: Utility x2 8628 | -5/Factory | Discovered new exit (range 19) 8636 | -5/Factory | Identified exit to Factory 8815 | -5/Factory | Repaired Imp. Sensor Array 8926 | -5/Factory | Fabricated Imp. Hacking Suite (x1) 9114 | -5/Factory | Identified exit to Upper Caves 9117 | -5/Factory | Discovered exit to Factory (range 9) 9145 | -5/Factory | Entered another Factory area 9145 | -4/Factory | Evolved 2 slots: Utility x2 9178 | -4/Factory | Identified exit to Research 9178 | -4/Factory | Identified exit to Upper Caves 9178 | -4/Factory | Identified exit to Extension 9371 | -4/Factory | Fabricated Imp. Hacking Suite? 9390 | -4/Factory | Fabricated Imp. Hacking Suite? 9503 | -4/Factory | Build established: Wizard-Scout 9519 | -4/Factory | Lost 4 parts (1p1n1u1w) 9520 | -4/Factory | Spotted B-86 Titan 9601 | -4/Factory | Repaired Imp. Flight Unit 9628 | -4/Factory | Repaired Imp. Flight Unit 9664 | -4/Factory | Repaired Imp. Cesium-ion Thruster 9679 | -4/Factory | Repaired Med. Storage Unit 9718 | -4/Factory | Entered Extension 9831 | -4/Extension | Rescued a captive Derelict 9859 | -4/Extension | Rescued A7 9873 | -4/Extension | Rescued a captive Derelict 9885 | -4/Extension | Rescued a captive Derelict 9999 | -4/Extension | Central database locked down 10083 | -4/Extension | Rescued a captive Derelict 10085 | -4/Extension | Rescued a captive Derelict 10103 | -4/Extension | Rescued a captive Derelict 10104 | -4/Extension | Rescued a captive Derelict 10171 | -4/Extension | Build established: Wizard-Skirmisher 10171 | -4/Extension | Lost 3 allies 10182 | -4/Extension | Spotted B-86 Titan 10656 | -4/Extension | Crushed by falling debris 10709 | -4/Extension | Rescued a captive Derelict 10710 | -4/Extension | Rescued a captive Derelict 10769 | -4/Extension | Rescued a captive Derelict 10944 | -4/Extension | Rescued a captive Derelict 10945 | -4/Extension | Rescued a captive Derelict 10964 | -4/Extension | Build established: Wizard-Mutant 10970 | -4/Extension | Discovered exit to Research (range 10) 10973 | -4/Extension | Discovered new exit (range 6) 10979 | -4/Extension | Identified exit to Cetus 11000 | -4/Extension | Entered Cetus 11000 | -4/Cetus | Accompanied by 5 allies (A7) 11005 | -4/Cetus | Acquired a Cetus Manufacturing Module code from A7 11012 | -4/Cetus | Spotted Cetus Guard 11012 | -4/Cetus | Spotted Cetus Guard 11018 | -4/Cetus | Spotted Cetus Guard 11019 | -4/Cetus | Spotted Cetus Guard 11040 | -4/Cetus | Allies destroyed Cetus Guard 11041 | -4/Cetus | Allies destroyed Cetus Guard 11050 | -4/Cetus | Allies destroyed Cetus Guard 11056 | -4/Cetus | Allies destroyed Cetus Guard 11085 | -4/Cetus | Lost 3 allies 11105 | -4/Cetus | Started Cetus Manufacturing Module 11112 | -4/Cetus | Escorted A7 to Cetus Mainframe 11130 | -4/Cetus | Manufactured an Enhanced Grunt 11155 | -4/Cetus | Manufactured an Enhanced Grunt 11180 | -4/Cetus | Manufactured an Enhanced Grunt 11205 | -4/Cetus | Manufactured an Enhanced Grunt 11230 | -4/Cetus | Manufactured an Enhanced Grunt 11266 | -4/Cetus | Discovered new exit (range 15) 11282 | -4/Cetus | Identified exit to Archives 11288 | -4/Cetus | Entered Archives 11288 | -4/Archives | Accompanied by 7 allies (A7) 11293 | -4/Archives | Received a hacking code to weaken MAIN.C 11330 | -4/Archives | Discovered new exit (range 16) 11340 | -4/Archives | Unable to access archive contents 11340 | -4/Archives | Unable to access archive contents 11349 | -4/Archives | Unable to access archive contents 11359 | -4/Archives | Unable to access archive contents 11364 | -4/Archives | Discovered exit to Research (range 15) 11545 | -4/Archives | Discovered new exit (range 16) 11783 | -4/Archives | Identified exit to Hub_04(d) 11791 | -4/Archives | Entered Hub_04(d) 11791 | -4/Hub_04(d) | Accompanied by 5 allies 12041 | -4/Hub_04(d) | Lost 5 allies 12707 | -4/Hub_04(d) | Core integrity fell below 50% 12735 | -4/Hub_04(d) | Entered Research 12735 | -3/Research | Evolved 2 slots: Utility x2 12737 | -3/Research | Lost 11 parts (2p2n5u2w) 12894 | -3/Research | Spotted B-86 Titan 12953 | -3/Research | Discovered new exit (range 4) 12973 | -3/Research | Entered another Research area 12973 | -2/Research | Evolved 2 slots: Utility x2 12990 | -2/Research | Identified exit to Access 13014 | -2/Research | Build established: Hacker-Mutant 13214 | -2/Research | Repaired Impulse Thruster Array 13269 | -2/Research | System corruption reached 10% 13294 | -2/Research | Found Prototype Device 13294 | -2/Research | Identified Beam Splitter 13386 | -2/Research | Lost 3 parts (1p2u) 13389 | -2/Research | Spotted B-90 Cyclops 13417 | -2/Research | Found Unknown Protection 13417 | -2/Research | Identified Hvy. Reactive Plating 13455 | -2/Research | Spotted B-90 Cyclops 13504 | -2/Research | Core integrity fell below 50% 13513 | -2/Research | Core integrity fell below 20% 13518 | -2/Research | Destroyed by Y-72 Warden with Railgun Last Messages --------------- 13505_ Knocked back. 13505_ C-57 Dissector system corrupted by crushing effect. 13506_ C-57 Dissector system terminally corrupted. 13506_ K-01 Serf collects debris. 13506_ R-10 Processor collects Lgt. Ion Engine. 13506_ Penetrated by Slug. 13506_ Lrn. Sensor Array destroyed. 13506_ K-01 Serf collects debris. 13507_ R-10 Processor collects Unknown Special Weapon. 13510_ Knocked back. 13511_ System corrupted: Graphene Brace rejected. 13511_ U-05 Engineer destroyed. 13512_ K-01 Serf destroyed. 13512_ Penetrated by Slug. 13513_ K-01 Serf collects debris. 13513_ Core Analyzer severed. 13515_ K-01 Serf collects debris. 13516_ Adv. Target Analyzer destroyed. 13516_ Knocked back. 13518_ Slug penetrates Wall. Map ----- +----------------------------------------------------+ | ?????????????????????????????????????????????????? | | ?????????????????????????????????????????????????? | | ?????????????????????????????????????????????????? | | ?????????????????????????????????????????????????? | | ?????????????????????????????????????????????????? | | ?????????????????????????????????????????????????? | | ?????????????????????????????????????????????????? | | ?????????????????????????????????????????????????? | | ?????????????????????????????????????????????????? | | ?????????????????????????????????????????????????? | | ?????????????????????????????????????????????????? | | ? ???????????????????????????????????????????????? | | ??????????????????????????????????????????????? | | ???????????####??????????????????????????????? | | ??????????" ???????????????????????????????? | | ??????????" #??????????????????????????????? | | # ??????????" #??????????????????????????????? | | # ????????? #??????????????????????????????? | | # #???????? #??????????????????????????????? | | # #???????? #??????????????????????????????? | | # ###?????? ???????????????????????????????? | | #?????? ??????????######?????????????????? | | #######+#########+## #?????????????????? | | ! A = H ### ????????? | | %A k % c*%ukYR< u ??????????? | | H ! * k%c @ #?????????????????? | | [ ####"##+########;+## #?????????????????? | | #????? ??????? #?##+###?????????????????? | | ##????? ??????? #????????????????????????? | | % #????? ????? #????????????????????????? | | =#????? ????? #????????????????????????? | | %%#???? #???# #????????????????????????? | | / /#???? #???# #????????????????????????? | | /=!! #??? #???# #????????????????????????? | | *%!% #??? #???####?????????????????????????? | | = #?? #????????????????????????????????? | | #??#########????????????????????????????????? | | ######??????????????????????????????????????? | | ! #??????????????????????????????????????? | | % #??????????????????????????????????????? | | | == ###????????????????????????????????????? | | == #????????????????????????????????????? | | == #????????????????????????????????????? | | #####??????????????????????????????????? | | ! ??????????????????????????????????? | | #??????????????????????????????????????? | | ###+##??????????????????????????????????????? | | # ????????????????????????????????????? | | #??? ???????????????????????????????????? | | #???????????????????????????????????????????? | +----------------------------------------------------+ Best States ------------- Heat Dissipation 125 Coolant Potential 100 Energy Generation 23 Energy Capacity 800 Matter Stores 300 Matter Capacity 300 Sight Range 22 Robot Scan Range 18 Terrain Scan Density 10 ECM Strength 1 Power Amplification 40 Armor Coverage 300 Core Shielding 20 Evasion (%) 64 Target Analysis 8 Core Analysis 9 Recoil Reduction 2 Offensive Hacking 48 Defensive Hacking 34 Item Schematics ----------------- Imp. Flight Unit | -7/Factory | Scanalyzed Imp. Hacking Suite | -6/Factory | Hacked Chainsword | -4/Extension | Hacked Adv. Recalibrator | -4/Extension | Hacked Enh. Quantum Rifle | -4/Extension | Hacked Impulse Thruster | -4/Extension | Hacked Quantum Reactor | -4/Extension | Hacked Particle Reactor | -4/Extension | Hacked Lgt. Quantum Reactor | -4/Extension | Hacked Hardcell Cannon | -4/Extension | Hacked Cmb. Linear Gravjet | -4/Hub_04(d) | Hacked Adv. Transmission Jammer | -4/Hub_04(d) | Hacked Enh. Nova Cannon | -4/Hub_04(d) | Hacked Robot Schematics ------------------ None Fabricated ------------ Imp. Hacking Suite | x1 | -6/Factory Imp. Hacking Suite | x1 | -5/Factory Imp. Hacking Suite | x1 | -4/Factory Imp. Hacking Suite | x1 | -4/Factory Alien Tech Used ----------------- None Achievements -------------- Main Advantage Challenges ------------ None Game ------ Seed PlasmaCryofiberMantle Manual? 0 Play Time 04:17:04 Cumulative 82.3 hours Start 2024.05.15 @ 15:18:52 End 2024.05.16 @ 03:15:11 Sessions 1 Manual Loads 0 Difficulty Rogue Special Mode None Game No. 63 Rogue 63 Adventurer 0 Explorer 0 Win Type - Total 1 Types 1/0/0/0/0/0/0/0/0 Lore% 19 Gallery% 44 Achievement% 38 Wizard Run 0 Options --------- Layout 0 ASCII 0 Keyboard 1 Movement Numpad Keybinds 0 Fullscreen 2 Font 18/SmallcapsGlow Map View 76x50 Zoom Use 0% Tactical HUD 1 Map Filters NONE Filters NONE Steam 1 RUN: dd048083-4782-4a1b-80f2-73ff28eade50